[Event "CCT Airthings Masters Play-In 2023"]
[Site "Online"]
[Date "2023.02.03"]
[Round "5"]
[White "Grischuk, Alexander"]
[Black "K_A_S_T_O_R"]
[Result "1/2-1/2"]
[ECO "A46"]
[WhiteElo "2745"]
[BlackElo "2635"]
[Annotator "TA"]
[PlyCount "52"]
[EventDate "2023.02.03"]
[EventType "swiss"]
[EventCountry "NET"]
[SourceTitle "playchess.com"]
[Source "ChessBase"]
[SourceQuality "1"]
[TimeControl "600+2"]

{[%evp 10,52,6,-1,14,7,17,0,0,0,0,-8,-14,-36,-25,-32,-31,-25,18,39,34,-30,-28,-33,-32,-25,-19,-28,-23,-50,-27,-43,-41,-54,-39,-39,-39,-62,0,0,0,-12,3,4,7]} 1. d4 {[%emt 0:00:03]} Nf6 {[%emt 0:00:06]} 2. Nf3 {[%emt 0:00:03]} e6 {[%emt 0:00:03]} 3. Bg5 {[%emt 0:00:04]} h6 {[%emt 0:00:04]} 4. Bxf6 {[%emt 0:00:16]} Qxf6 {[%emt 0:00:01]} 5. e4 {[%emt 0:00:01]} d6 {[%emt 0:00:04]} 6. Nbd2 {[%emt 0:00:15]} e5 {[%emt 0:00:15] A46: 1 d4 Nf6 2 Nf3 e6: Torre, London and Colle Systems.} 7. c3 {[%emt 0:00:29]} Nd7 {[%emt 0:00:05]} 8. Nc4 {[%emt 0:00:11]} g6 {[%emt 0:00:14]} 9. Ne3 {[%emt 0:00:37]} Bg7 {[%emt 0:00:05] [#]} 10. h4 $146 {[%emt 0:00:15]} ({Predecessor:} 10. Qd2 O-O 11. d5 Nc5 12. Bd3 a5 13. O-O a4 14. Qc2 Qe7 15. b4 axb3 16. axb3 Bd7 17. b4 Nxd3 18. Qxd3 Rfb8 19. Nd2 Qe8 20. Nb3 Rxa1 21. Rxa1 Ra8 {½-½ Muhren,B-Schol,J Haarlem AKN op 09th 2000 (5)}) 10... h5 {[%emt 0:00:39]} 11. Bd3 {[%emt 0:00:28]} Nb6 {[%emt 0:00:13]} 12. a4 {[%emt 0:01:07]} a5 {[%emt 0:00:07]} 13. Bb5+ {[%emt 0:01:22]} Kf8 {[%emt 0:00:09]} 14. dxe5 {[%emt 0:00:38]} dxe5 {[%emt 0:00:06]} 15. Nd5 {[%emt 0:00:34]} (15. Nxe5 $14 c6 16. Bc4) 15... Nxd5 $11 {[%emt 0:00:04]} 16. Qxd5 {[%emt 0:00:01]} c6 {[%emt 0:00:16]} 17. Qc5+ {[%emt 0:00:01]} Qe7 {[%emt 0:00:00]} 18. Qxe7+ {[%emt 0:00:01]} Kxe7 {[%emt 0:00:01]} 19. Bc4 {[%emt 0:00:20]} f6 {[%emt 0:00:22]} 20. O-O-O {[%emt 0:00:21]} Bg4 {[%emt 0:00:04]} 21. Rd3 {[%emt 0:00:01]} Rhd8 {[%emt 0:00:04]} 22. Rhd1 {[%emt 0:00:03]} Rxd3 {[%emt 0:00:03]} 23. Rxd3 {[%emt 0:00:00]} Rd8 {[%emt 0:02:04]} (23... Rf8 $15 24. Rd1 f5) 24. Rxd8 {[%emt 0:00:04] The position is equal.} Kxd8 {[%emt 0:00:01]} 25. Nh2 {[%emt 0:00:08]} Ke7 {[%emt 0:00:10]} 26. Nxg4 {[%emt 0:00:04]} hxg4 {[%emt 0:00:01] Weighted Error Value: White=0.13 (very precise) /Black=0.11 (very precise)} 1/2-1/2

[Event "CCT Airthings Masters Play-In 2023"]
[Site "Online"]
[Date "2023.02.03"]
[Round "5"]
[White "Dominguez Perez, Leinier"]
[Black "Perez Ponsa, Federico"]
[Result "1-0"]
[ECO "B90"]
[WhiteElo "2743"]
[BlackElo "2532"]
[Annotator "TA"]
[PlyCount "117"]
[EventDate "2023.02.03"]
[EventType "swiss"]
[EventCountry "NET"]
[SourceTitle "playchess.com"]
[Source "ChessBase"]
[SourceQuality "1"]
[TimeControl "600+2"]

{[%evp 20,117,36,32,35,30,25,25,20,33,16,31,17,7,56,39,50,40,60,45,49,42,40,43,43,37,45,21,31,17,39,18,56,46,39,10,19,10,10,12,37,32,44,30,44,25,37,22,72,72,64,64,66,66,87,99,104,93,158,85,186,87,141,108,176,181,224,225,232,227,339,311,599,532,810,755,800,795,794,784,774,773,773,766,766,750,2218,427,379,350,309,303,29944,29942,12834,12231,10944,10944,29978,29976]} 1. e4 {[%emt 0:00:03]} c5 {[%emt 0:00:06]} 2. Nf3 {[%emt 0:00:01]} d6 {[%emt 0:00:01]} 3. d4 {[%emt 0:00:00]} cxd4 {[%emt 0:00:01]} 4. Nxd4 {[%emt 0:00:00]} Nf6 {[%emt 0:00:00]} 5. Nc3 {[%emt 0:00:01]} a6 {[%emt 0:00:01]} 6. Be3 {[%emt 0:00:01]} e5 {[%emt 0:00:01]} 7. Nb3 {[%emt 0:00:11]} Be7 {[%emt 0:00:01]} 8. f3 {[%emt 0:00:01]} Be6 {[%emt 0:00:14]} 9. Qd2 {[%emt 0:00:02]} h5 {[%emt 0:00:01]} 10. Nd5 {[%emt 0:00:11]} Nxd5 {[%emt 0:00:12]} 11. exd5 {[%emt 0:00:02]} Bf5 {[%emt 0:00:01] B90: Sicilian Najdorf: Unusual White 6th moves, 6 Be3 Ng4 and 6 Be3 e5.} 12. Be2 {[%emt 0:00:10]} Bh4+ {[%emt 0:00:29]} 13. g3 {[%emt 0:00:03]} Be7 {[%emt 0:00:01] White has an edge.} 14. O-O-O {[%emt 0:00:18][%cal Be1c1,Bc1b1,Bb1a1][%mdl 32]} Nd7 {[%emt 0:00:02]} 15. Kb1 {[%emt 0:00:13]} Rc8 {[%emt 0:00:19]} 16. Rc1 {[%emt 0:00:05] [#]} Nb6 $146 {[%emt 0:00:16]} (16... Nf6 $11) ({Predecessor:} 16... b5 17. Rhd1 Qc7 18. f4 Bd8 19. h4 Qb7 20. a3 Bg6 21. Ka2 O-O 22. g4 hxg4 23. Bxg4 {½-½ Tauber,H (2501)-Novak,J (2488) ICCF GMN/A/04 email 2020}) 17. Na5 {[%emt 0:00:56]} Qc7 {[%emt 0:00:21]} 18. Ka1 {[%emt 0:00:10]} Bd8 {[%emt 0:00:08]} 19. c4 {[%emt 0:01:35]} Nxd5 {[%emt 0:01:16][%mdl 64] Discovered Attack} 20. Qxd5 {[%emt 0:00:04]} Qxa5 {[%emt 0:00:01]} 21. Qxb7 {[%emt 0:00:04]} O-O {[%emt 0:00:48]} 22. Rhd1 {[%emt 0:00:08]} Bc7 {[%emt 0:01:14]} 23. Qd5 {[%emt 0:01:33] Threatens to win with Qxa5.} (23. Qc6 {feels hotter.} Rb8 24. Ba7 Qb4 25. Bxb8 Rxb8 26. b3) 23... Qa4 {[%emt 0:00:20]} 24. Qd2 {[%emt 0:01:37][%cal Oh2h3]} Rfd8 {[%emt 0:00:53] And now ...Ba5 would win.} 25. Bd3 {[%emt 0:00:08]} Be6 {[%emt 0:00:08]} 26. Bc2 {[%emt 0:00:19]} Qa5 {[%emt 0:00:16]} (26... Qxc4 $2 27. Bh7+ Kxh7 28. Rxc4 Bxc4 29. Qc2+ Kg8 30. Qxc4 $18) 27. Be4 {[%emt 0:00:52]} Qxd2 {[%emt 0:00:34]} 28. Rxd2 {[%emt 0:00:01]} Ba5 {[%emt 0:00:01][%csl LRc4,LRd2]} 29. Rdc2 {[%emt 0:00:06]} Rb8 {[%emt 0:00:48]} 30. Rd1 {[%emt 0:00:41]} Kf8 {[%emt 0:00:25]} 31. b3 {[%emt 0:00:10]} Bb4 {[%emt 0:00:04]} 32. Kb2 {[%emt 0:00:25]} Ke7 {[%emt 0:00:05]} 33. Bd5 {[%emt 0:00:06]} Bf5 {[%emt 0:00:14]} (33... Bc5 $11 34. Bxc5 dxc5) 34. Re2 $16 {[%emt 0:00:09] White is more active.} f6 {[%emt 0:00:05]} 35. a3 {[%emt 0:00:05]} Bc5 {[%emt 0:00:01]} 36. b4 {[%emt 0:00:07]} a5 {[%emt 0:00:17]} 37. Bxc5 {[%emt 0:00:01]} dxc5 {[%emt 0:00:03]} 38. b5 {[%emt 0:00:00]} g5 {[%emt 0:00:09]} ({Black should try} 38... a4) 39. Kc3 {[%emt 0:00:09]} (39. Kb3 $142 $1) 39... Rd6 {[%emt 0:00:04]} (39... a4 $16) 40. Red2 {[%emt 0:00:05]} (40. Rdd2 $1 $18 {and White stays clearly on top.}) 40... Rbd8 {[%emt 0:00:03]} ({Better is} 40... a4) 41. Kb3 {[%emt 0:00:13]} g4 {[%emt 0:00:06] [#]} (41... Be6 $16) 42. f4 $1 $18 {[%emt 0:00:11] Hoping for fxe5.} exf4 {[%emt 0:00:51]} 43. gxf4 {[%emt 0:00:00]} Kf8 {[%emt 0:00:04]} 44. Re1 {[%emt 0:00:03] Inhibits Be4.} R8d7 {[%emt 0:00:04]} (44... Be6 $142 45. Kc3 (45. Rxe6 Rxe6 {[%mdl 64] Pin} 46. Ra2 Red6 $11) 45... Bd7) 45. Rde2 {[%emt 0:00:02] aiming for Re8+.} Kg7 $2 {[%emt 0:00:05]} (45... Bg6 46. Ka4 Bf7) 46. Re7+ {[%emt 0:00:03]} Kg6 {[%emt 0:00:06]} 47. Rxd7 {[%emt 0:00:02]} Rxd7 {[%emt 0:00:06][%mdl 4096] Endgame KRB-KRB} 48. Ka4 {[%emt 0:00:02]} Ra7 {[%emt 0:00:02]} 49. b6 {[%emt 0:00:03]} Bd7+ {[%emt 0:00:02]} 50. Kb3 {[%emt 0:00:01]} Ra6 {[%emt 0:00:01]} 51. b7 {[%emt 0:00:01]} Rb6+ {[%emt 0:00:03]} 52. Kc3 {[%emt 0:00:01]} a4 {[%emt 0:00:04]} 53. Re7 {[%emt 0:00:04]} (53. Rb1 $142 Rxb7 54. Rxb7) 53... Rb3+ {[%emt 0:00:02]} 54. Kd2 {[%emt 0:00:01]} Bf5 {[%emt 0:00:07][%cal Oh5h4] [#]} 55. Re8 $1 {[%emt 0:00:02]} h4 $2 {[%emt 0:00:02]} (55... Rb2+ $18 56. Ke3 Rb3+ 57. Ke2 Rb2+ 58. Kf1 Rb1+ 59. Kf2 Rb2+ 60. Ke1 Rb1+ 61. Kf2 Rb2+ 62. Re2 Rb6) 56. b8=Q {[%emt 0:00:01]} ({Inferior is} 56. b8=B Rb2+ 57. Ke1 Rb1+ 58. Kf2 Rb2+ 59. Ke3 (59. Kg1 Rb1+ 60. Kg2 Rb2+ 61. Kh1 Rb1+ 62. Kg2 Rb2+ 63. Kh1 Rb1+ 64. Kg2 $11) 59... Rb3+ 60. Kf2 Rb2+ 61. Kg1 Rb1+ 62. Kg2 Rb2+ 63. Kh1 Rb1+ 64. Kg2 Rb2+ 65. Kh1 Rb1+ 66. Kg2 $11) 56... Rxb8 {[%emt 0:00:01]} 57. Rxb8 {[%emt 0:00:01]} g3 {[%emt 0:00:03]} 58. hxg3 {[%emt 0:00:02]} hxg3 {[%emt 0:00:01]} 59. Ke3 {[%emt 0:00:01] Weighted Error Value: White=0.26 (precise) /Black=0.54} 1-0

[Event "CCT Airthings Masters Play-In 2023"]
[Site "Online"]
[Date "2023.02.03"]
[Round "5"]
[White "FabianoCaruana"]
[Black "Mitrabha, Guha"]
[Result "1-0"]
[ECO "D40"]
[WhiteElo "2738"]
[BlackElo "2510"]
[Annotator "TA"]
[PlyCount "39"]
[EventDate "2023.02.03"]
[EventType "swiss"]
[EventCountry "NET"]
[SourceTitle "playchess.com"]
[Source "ChessBase"]
[SourceQuality "1"]
[TimeControl "600+2"]

{[%evp 12,39,0,0,4,0,15,-5,11,3,14,5,56,56,65,29,28,25,100,84,203,209,208,204,1120,1114,29994,29995,29995,29996]} 1. c4 {[%emt 0:00:03] Giri,Anish} c5 {[%emt 0:00:05]} 2. Nf3 {[%emt 0:00:02]} Nf6 {[%emt 0:00:05]} 3. Nc3 {[%emt 0:00:01]} Nc6 {[%emt 0:00:04]} 4. e3 {[%emt 0:00:01]} e6 {[%emt 0:00:13]} 5. d4 {[%emt 0:00:02]} d5 {[%emt 0:00:01]} 6. a3 {[%emt 0:00:01]} dxc4 {[%emt 0:00:14]} 7. Bxc4 {[%emt 0:00:00]} a6 {[%emt 0:00:13] D40: Queen's Gambit Declined: Semi-Tarrasch with 5 e3.} 8. Bd3 {[%emt 0:00:13]} b5 {[%emt 0:00:08] [#]} 9. Ne4 $146 {[%emt 0:00:11]} ({Predecessor:} 9. dxc5 Bxc5 10. b4 Be7 11. O-O Bb7 12. Bb2 O-O 13. Ne4 Nxe4 14. Bxe4 f5 15. Bb1 Qxd1 16. Rxd1 {1-0 Ding,L (2806)-Nakamura,H (2760) Candidates Tournament 2022 (14)}) 9... Nxe4 {[%emt 0:01:27] The position is equal.} (9... c4 $5 {[%cal Rc4d3]} 10. Nxf6+ gxf6 $11) 10. Bxe4 {[%emt 0:00:01]} Bb7 {[%emt 0:00:01]} 11. O-O {[%emt 0:00:02]} Qc7 {[%emt 0:00:36]} ({Black should try} 11... c4 $11) 12. dxc5 $14 {[%emt 0:00:03]} Bxc5 {[%emt 0:00:07]} 13. b4 {[%emt 0:00:03]} (13. Bd2 $5 {[%cal Ra1c1]}) 13... Bd6 {[%emt 0:03:34]} 14. Bb2 $36 {[%emt 0:00:03][%mdl 2048] Rc1 would be deadly. White is pushing.} f5 {[%emt 0:00:04]} (14... Rd8 $1 $11) 15. Bxc6+ {[%emt 0:00:12]} Bxc6 {[%emt 0:00:02]} (15... Qxc6 $16 16. Rc1 (16. Bxg7 $2 Rg8 $19) 16... Qd7) 16. Rc1 $18 {[%emt 0:00:01] Black must now prevent Nd4.} Qd7 {[%emt 0:01:27] [#]} 17. Ng5 $1 {[%emt 0:01:32][%cal Ob2g7] Strongly threatening Bxg7!} O-O {[%emt 0:00:48] [#]} (17... Bd5) 18. Rxc6 $1 {[%emt 0:00:03][%mdl 512]} Qxc6 {[%emt 0:00:16]} (18... Bxh2+ 19. Kh1) 19. Qh5 {[%emt 0:00:02][%csl Gg5][%cal Rh5h7]} h6 {[%emt 0:00:28] [#]} 20. Qg6 $1 {[%emt 0:00:01] Weighted Error Value: White=0.08 (flawless) /Black=0.69} 1-0

[Event "CCT Airthings Masters Play-In 2023"]
[Site "Online"]
[Date "2023.02.03"]
[Round "5"]
[White "Vidit, Santosh Gujrathi"]
[Black "kirillshevchenko"]
[Result "1-0"]
[ECO "E94"]
[WhiteElo "2730"]
[BlackElo "2545"]
[Annotator "TA"]
[PlyCount "43"]
[EventDate "2023.02.03"]
[EventType "swiss"]
[EventCountry "NET"]
[SourceTitle "playchess.com"]
[Source "ChessBase"]
[SourceQuality "1"]
[TimeControl "600+2"]

{[%evp 15,43,29,55,11,84,103,224,223,208,217,304,307,236,266,240,263,391,311,300,231,227,231,218,222,346,339,578,593,608,602]} 1. d4 {[%emt 0:00:03]} Nf6 {[%emt 0:00:03]} 2. c4 {[%emt 0:00:01]} g6 {[%emt 0:00:01]} 3. Nc3 {[%emt 0:00:04]} Bg7 {[%emt 0:00:01]} 4. e4 {[%emt 0:00:01]} d6 {[%emt 0:00:01]} 5. Nf3 {[%emt 0:00:01]} O-O {[%emt 0:00:00]} 6. Be2 {[%emt 0:00:01]} e5 {[%emt 0:00:01]} 7. Be3 {[%emt 0:00:08][%cal Bc1e3,Be3g5,Bg5e7][%mdl 32]} Na6 {[%emt 0:00:23]} 8. O-O {[%emt 0:00:05]} Qe7 {[%emt 0:00:15][%cal Of6e4] 8...c6 is the recent fashion.} 9. Bg5 {[%emt 0:00:10][%cal Oc4c5] E94: King's Indian: Classical: 6 Be2 e5 7 0-0: Various Black 7th moves.} c6 {[%emt 0:01:50] [#]} (9... exd4 $11 {keeps the balance.} 10. Nd5 (10. Qxd4 Re8 $11) (10. Nxd4 Qe5 $11) 10... Qd8) 10. c5 $1 $16 {[%emt 0:00:14]} exd4 {[%emt 0:00:23]} (10... h6 $16) 11. cxd6 $18 {[%emt 0:00:08] White is clearly better.} ({Not} 11. Qxd4 Nxc5 12. Bc4 h6 $17) 11... Qe6 {[%emt 0:01:02]} 12. Qxd4 {[%emt 0:00:41] [#] Threatens to win with Bc4.} Ng4 $146 {[%emt 0:00:15]} (12... Nd7 $142 13. Qd2 Nac5) ({Predecessor:} 12... Nd7 13. Qd2 Nac5 14. Be7 Re8 15. Ng5 Qe5 16. Rad1 Ne6 17. f4 Qc5+ 18. Kh1 Nxg5 19. fxg5 {1-0 Pravec,L (2302)-Rotter,W (2120) CZE-ch sf14 email 2004}) 13. Qd2 {[%emt 0:00:09]} Nc5 {[%emt 0:00:07][%cal Og7c3] [#]} 14. Be7 $1 {[%emt 0:00:25]} Re8 {[%emt 0:00:04]} 15. h3 {[%emt 0:01:27]} Ne5 {[%emt 0:00:16]} (15... Nh6 $142 16. Rfd1 Rxe7) 16. Nd4 {[%emt 0:00:59]} Qd7 {[%emt 0:00:02]} 17. Rad1 {[%emt 0:00:26] f4 would be deadly.} Rxe7 {[%emt 0:00:16]} 18. dxe7 {[%emt 0:00:01]} Qxe7 {[%emt 0:00:00]} 19. f4 {[%emt 0:00:04]} Ned3 {[%emt 0:01:10]} (19... Ned7 $142 20. e5 Nb6) 20. e5 {[%emt 0:00:03]} Nxe5 {[%emt 0:00:07]} (20... Nb4 21. a3 Nd5 22. Nxd5 cxd5) 21. fxe5 {[%emt 0:00:03]} Bxe5 {[%emt 0:00:00]} 22. Bc4 {[%emt 0:00:08] White took control after the opening.   Weighted Error Value: White=0.19 (very precise) /Black=0.72} 1-0

[Event "CCT Airthings Masters Play-In 2023"]
[Site "Online"]
[Date "2023.02.03"]
[Round "5"]
[White "Vidit, Santosh Gujrathi"]
[Black "Cayse"]
[Result "0-1"]
[ECO "C54"]
[WhiteElo "2730"]
[BlackElo "2582"]
[Annotator "TA"]
[PlyCount "92"]
[EventDate "2023.02.03"]
[EventType "swiss"]
[EventCountry "NET"]
[SourceTitle "playchess.com"]
[Source "ChessBase"]
[SourceQuality "1"]
[TimeControl "600+2"]

{[%evp 15,92,22,19,26,30,13,9,37,17,7,9,0,0,-44,-30,-43,-42,-32,-12,-11,4,-8,5,-20,-32,-74,-76,-64,-27,-100,-30,-6,-35,-322,-323,-320,-300,-312,-306,-303,-291,-652,-197,-220,-208,-329,-332,-371,-364,-353,-358,-350,-344,-479,-505,-595,-578,-752,-762,-814,-811,-791,-776,-878,-828,-1178,-1194,-1187,-1168,-1113,-927,-1305,-1305,-1237,-1150,-1265,-1203,-29982,-29983]} 1. e4 {[%emt 0:00:03]} e5 {[%emt 0:00:05]} 2. Nf3 {[%emt 0:00:03]} Nc6 {[%emt 0:00:01]} 3. Bc4 {[%emt 0:00:01]} Nf6 {[%emt 0:00:02]} 4. d3 {[%emt 0:00:10]} Bc5 {[%emt 0:00:02]} 5. O-O {[%emt 0:00:03]} O-O {[%emt 0:00:02]} 6. c3 {[%emt 0:00:15]} d5 {[%emt 0:00:06]} 7. exd5 {[%emt 0:00:02]} Nxd5 {[%emt 0:00:01]} 8. Re1 {[%emt 0:00:14]} Bg4 {[%emt 0:00:07]} 9. h3 {[%emt 0:00:24] 9.Nbd2 is more advanced technology. C54: Giuoco Piano: 4 c3 Nf6, main lines with 5 d4 and 5 d3.} Bh5 {[%emt 0:00:03]} 10. a4 {[%emt 0:00:10] [#]} Nb6 $5 $146 {[%emt 0:00:46][%mdl 8] New and interesting.} ({Predecessor:} 10... a5 11. Nbd2 Nb6 12. Bb3 Qxd3 13. Nxe5 Qf5 14. Nef3 Rae8 15. g4 Bxg4 16. hxg4 Qxg4+ {½-½ Dominguez Perez,L (2756)-Shankland,S (2709) American Cup-ch 2022 (1.1)}) 11. Bb5 {[%emt 0:00:08] The position is equal.} Nd7 {[%emt 0:01:56]} 12. b4 {[%emt 0:00:56]} Bd6 {[%emt 0:00:07]} 13. a5 {[%emt 0:00:24] Black must now prevent a6.} a6 {[%emt 0:00:06]} 14. Bc4 {[%emt 0:00:04]} Kh8 {[%emt 0:00:14]} 15. Nbd2 {[%emt 0:01:42]} f5 {[%emt 0:00:04]} 16. Be6 {[%emt 0:00:03]} Qe8 $36 {[%emt 0:01:26][%mdl 2048] Black has some pressure.} (16... Qe7 $5 {[%cal Re7e6]} 17. Qb3 Rae8 $11) 17. Qb3 {[%emt 0:00:36]} Rf6 {[%emt 0:00:25]} 18. Bd5 {[%emt 0:00:07]} Ne7 {[%emt 0:00:25]} 19. Bc4 {[%emt 0:00:23]} h6 {[%emt 0:00:46]} 20. Bb2 {[%emt 0:00:23]} Ng6 {[%emt 0:00:20]} 21. g3 {[%emt 0:00:16]} Ne7 {[%emt 0:00:15]} 22. Nh2 {[%emt 0:00:27]} (22. Nh4 $11) 22... Qf8 {[%emt 0:00:31]} (22... Qg6 $17) 23. Be6 {[%emt 0:00:46]} Nb8 {[%emt 0:00:21][%cal Of6e6] ...Rxe6! is the strong threat.} 24. d4 $2 {[%emt 0:00:38][%mdl 8192] [#] This move loses the game for White.} ({White should try} 24. Bc4 $15) 24... Rxe6 $1 $19 {[%emt 0:00:14][%mdl 512]} 25. Qxe6 {[%emt 0:00:11]} Bf7 {[%emt 0:00:01]} 26. dxe5 {[%emt 0:00:17]} Bxb4 {[%emt 0:00:08]} ({And not} 26... Bxe6 27. exd6 Qf6 28. dxe7 $17) 27. Qxf7 {[%emt 0:00:07]} Qxf7 {[%emt 0:00:00]} 28. e6 $2 {[%emt 0:00:02]} (28. cxb4 Nbc6 29. e6) 28... Qg6 $2 {[%emt 0:00:07]} (28... Qf6 29. cxb4 Qxb2) 29. cxb4 {[%emt 0:00:02]} f4 {[%emt 0:00:08]} 30. g4 {[%emt 0:00:12]} (30. Re4 {keeps fighting.}) 30... Qc2 {[%emt 0:00:06][%csl LRb2,LRd2]} 31. Ra2 {[%emt 0:00:43][%cal Ob2g7]} Kg8 {[%emt 0:00:17]} 32. Nhf3 {[%emt 0:00:04]} Nbc6 {[%emt 0:00:03][%cal Bb8c6,Bc6b4,Bb4d3,Bd3b2,Bb2d1][%mdl 32]} 33. Rc1 {[%emt 0:00:02]} Qg6 {[%emt 0:00:08]} 34. Re1 {[%emt 0:00:22]} Nxb4 {[%emt 0:00:02]} 35. Ra4 {[%emt 0:00:05]} Nd3 {[%emt 0:00:04][%csl LRb2,LRe1]} 36. Ne5 {[%emt 0:00:01]} Qe8 {[%emt 0:00:01]} (36... Qxe6 $2 37. Nxd3 Qd7 38. Rd4 $18 (38. Rxf4 Rd8 $16)) 37. Ree4 {[%emt 0:00:32]} Nxb2 {[%emt 0:00:24]} 38. Rab4 {[%emt 0:00:01]} Nd1 {[%emt 0:00:00]} 39. Rxb7 {[%emt 0:00:01]} Rd8 {[%emt 0:00:08]} 40. Nd7 {[%emt 0:00:02]} Rxd7 {[%emt 0:00:04]} 41. exd7 {[%emt 0:00:01]} Qxd7 {[%emt 0:00:01]} 42. Nf3 {[%emt 0:00:03]} Nc3 {[%emt 0:00:03]} 43. Re5 {[%emt 0:00:03]} Nc6 {[%emt 0:00:07]} 44. Re1 {[%emt 0:00:02]} Nb5 {[%emt 0:00:02] And now ...Qd3 would win.} 45. Rc1 {[%emt 0:00:05]} Kh7 {[%emt 0:00:05]} 46. Kg2 {[%emt 0:00:02]} Qd5 {[%emt 0:00:10] Artfully played by Cayse.   Weighted Error Value: White=0.88/Black=0.27 (precise)} 0-1

[Event "CCT Airthings Masters Play-In 2023"]
[Site "Online"]
[Date "2023.02.03"]
[Round "5"]
[White "Andreikin, Dmitry"]
[Black "NikoTheodorou"]
[Result "1/2-1/2"]
[ECO "E73"]
[WhiteElo "2729"]
[BlackElo "2670"]
[Annotator "TA"]
[PlyCount "48"]
[EventDate "2023.02.03"]
[EventType "swiss"]
[EventCountry "NET"]
[SourceTitle "playchess.com"]
[Source "ChessBase"]
[SourceQuality "1"]
[TimeControl "600+2"]

{[%evp 11,48,45,56,6,29,27,21,29,25,32,35,0,-7,-18,14,0,10,12,19,0,0,0,0,0,0,-3,0,0,0,0,0,0,0,0,0,0,0,0,0]} 1. d4 {[%emt 0:00:03]} Nf6 {[%emt 0:00:04]} 2. c4 {[%emt 0:00:01]} g6 {[%emt 0:00:01]} 3. Nc3 {[%emt 0:00:03]} Bg7 {[%emt 0:00:01]} 4. e4 {[%emt 0:00:08]} d6 {[%emt 0:00:01]} 5. Be2 {[%emt 0:00:04]} O-O {[%emt 0:00:03]} 6. Be3 {[%emt 0:00:02]} c5 {[%emt 0:00:28]} 7. e5 {[%emt 0:00:08] E73: King's Indian: Averbakh Variation without 6...c5.} (7. dxc5 Qa5 $11) (7. d5 $14) 7... dxe5 {[%emt 0:00:54]} (7... Ne8 $5 {[%cal Rc5d4]}) 8. dxe5 {[%emt 0:00:03]} (8. dxc5 Qa5 9. Qb3 Nc6 $17) 8... Nfd7 {[%emt 0:00:04]} 9. f4 {[%emt 0:00:11]} Nc6 {[%emt 0:00:36]} 10. Nf3 {[%emt 0:00:07]} f6 $1 {[%emt 0:00:01]} 11. O-O {[%emt 0:01:27]} (11. exf6 {simplifies} Nxf6 12. Qxd8 Rxd8 13. Bxc5 Bf5 14. O-O) 11... fxe5 {[%emt 0:01:44] The position is equal.} 12. Qd5+ {[%emt 0:00:03]} Kh8 {[%emt 0:00:01]} 13. Ng5 {[%emt 0:00:01]} ({Reject} 13. Bxc5 e4 14. Ne5 Nxc5 15. Qxc5 Qd2 $17) (13. Nxe5 {simplifies} Ndxe5 14. fxe5 Rxf1+ 15. Rxf1 Qc7 16. Qxc5 Qxe5 17. Qxe5 Bxe5 18. Rd1) 13... Qe8 {[%emt 0:00:01] ...h6 would be deadly. Black is weak on the light squares} 14. fxe5 {[%emt 0:00:41] [#]} ({Worse is} 14. Bxc5 Nxc5 15. Qxc5 exf4 $17) 14... Ndxe5 $146 {[%emt 0:00:03]} ({Predecessor:} 14... e6 15. Nxe6 Nb6 16. Nxg7 Kxg7 17. Qxc5 Rxf1+ 18. Rxf1 Qe7 19. Qxe7+ Nxe7 20. Bg5 Nf5 {1-0 Klimkowski,J (2305)-Marczuk,D (2292) Infoszach Masters blitz 2020 (1.1)}) 15. Rxf8+ {[%emt 0:00:03]} (15. Nb5 $5 {[%cal Rb5c7]} Rb8 16. Bxc5 $11 (16. Qxc5 h6 $11)) 15... Qxf8 {[%emt 0:00:00]} 16. Rf1 {[%emt 0:00:02]} Qg8 {[%emt 0:00:08]} 17. Bxc5 {[%emt 0:00:18]} h6 {[%emt 0:00:25]} 18. Qxg8+ {[%emt 0:00:20]} Kxg8 {[%emt 0:00:01]} 19. Nf3 {[%emt 0:00:04]} Be6 {[%emt 0:01:10]} 20. Nd5 {[%emt 0:00:29] [#] Strongly threatening Nc7.} Rd8 {[%emt 0:00:05][%cal Oe5c4]} 21. Rd1 {[%emt 0:01:07]} Kf7 {[%emt 0:00:52]} 22. Rf1 {[%emt 0:01:19]} Kg8 {[%emt 0:00:01][%cal Oe5c4]} 23. Rd1 {[%emt 0:00:36]} Kf7 {[%emt 0:00:03]} 24. Rf1 {[%emt 0:00:38]} Kg8 {[%emt 0:00:01] An uneventful encounter.   Weighted Error Value: White=0.07 (flawless) /Black=0.05 (flawless)} 1/2-1/2

[Event "CCT Airthings Masters Play-In 2023"]
[Site "Online"]
[Date "2023.02.03"]
[Round "5"]
[White "Wizard456"]
[Black "Eltaj_Safarli"]
[Result "1/2-1/2"]
[ECO "D78"]
[WhiteElo "2728"]
[BlackElo "2631"]
[Annotator "NA"]
[PlyCount "20"]
[EventDate "2023.02.03"]
[EventType "swiss"]
[EventCountry "NET"]
[SourceTitle "playchess.com"]
[Source "ChessBase"]
[SourceQuality "1"]
[TimeControl "600+2"]

1. d4 {[%emt 0:00:04]} Nf6 {[%emt 0:00:07]} 2. Nf3 {[%emt 0:00:01]} g6 {[%emt 0:00:06]} 3. g3 {[%emt 0:00:01]} Bg7 {[%emt 0:00:01]} 4. Bg2 {[%emt 0:00:01]} O-O {[%emt 0:00:00]} 5. O-O {[%emt 0:00:00]} d5 {[%emt 0:00:01]} 6. c4 {[%emt 0:00:00]} c6 {[%emt 0:00:00]} 7. Nbd2 {[%emt 0:00:02]} a5 {[%emt 0:00:10]} 8. b3 {[%emt 0:00:16]} a4 {[%emt 0:00:02]} 9. Ba3 {[%emt 0:00:02]} Re8 {[%emt 0:01:03]} 10. e3 {[%emt 0:01:50]} Bf5 {[%emt 0:00:13]} 1/2-1/2